bitfinex-derivatives/quotes_BTCF0:USTF0_20240913
["timestamp","ask_amount","ask_price","bid_price","bid_amount"]
[1726238293284,0.085945,58174.0,58172.0,0.085947]
[1726238293480,0.3608,58176.0,58175.0,0.085943]
[1726238294000,0.3608,58176.0,58175.0,0.545943]
[1726238294195,0.3608,58176.0,58175.0,0.631886]
[1726238294387,0.3608,58176.0,58175.0,0.545943]
[1726238294892,0.3608,58176.0,58170.0,0.3608]
[1726238295093,0.085949,58171.0,58170.0,0.446749]
[1726238295689,0.085949,58171.0,58170.0,0.3608]
[1726238295882,0.1129,58175.0,58170.0,0.446749]
[1726238295883,0.311644,58175.0,58170.0,0.446749]
[1726238296082,0.085946,58173.0,58170.0,0.446749]
[1726238296282,0.085946,58174.0,58164.0,0.46]
[1726238296583,0.2257,58175.0,58174.0,0.085944]
[1726238296899,0.1129,58175.0,58174.0,0.085944]
[1726238298792,0.085947,58173.0,58169.0,0.3608]
[1726238298996,0.085947,58173.0,58171.0,0.085947]
[1726238299187,0.1129,58175.0,58173.0,0.085945]
[1726238299391,0.1129,58175.0,58174.0,0.085944]
[1726238299392,0.198844,58175.0,58174.0,0.085944]
[1726238300089,0.1129,58175.0,58174.0,0.085944]
[1726238300782,0.3608,58176.0,58175.0,0.085943]
[1726238302092,1.4208,58176.0,58161.0,0.3608]
[1726238302294,0.085959,58165.0,58164.0,0.085959]
[1726238302492,0.3608,58171.0,58170.0,0.08595]
[1726238302684,0.36168,58176.0,58175.0,0.085943]
[1726238302998,0.3608,58176.0,58175.0,0.085943]
[1726238303696,0.085936,58180.0,58178.0,0.085937]
[1726238303697,0.3608,58179.0,58178.0,0.085937]
[1726238303990,0.08594,58177.0,58170.0,0.3608]
[1726238304196,0.3608,58179.0,58170.0,0.3608]
[1726238304197,0.085946,58174.0,58170.0,0.3608]
[1726238304402,0.085949,58171.0,58163.0,0.3608]
[1726238304594,0.085949,58171.0,58170.0,0.08595]
[1726238305193,0.11,58173.0,58172.0,0.085947]
[1726238305790,0.195946,58173.0,58172.0,0.085947]
[1726238305992,0.195946,58173.0,58163.0,0.3608]
[1726238305993,0.4708,58173.0,58163.0,0.3608]
[1726238306193,0.195947,58173.0,58172.0,0.085947]
[1726238306595,0.11,58173.0,58165.0,0.085957]
[1726238306794,0.085959,58164.0,58163.0,0.446761]
[1726238306994,0.446755,58167.0,58159.0,0.085966]
[1726238307194,0.3608,58167.0,58159.0,0.085966]
[1726238307399,0.085965,58160.0,58153.0,0.05107613]
[1726238307594,0.08597,58157.0,58151.0,0.63188]
[1726238307901,0.3608,58160.0,58156.0,0.08597]
[1726238308493,0.3608,58160.0,58151.0,0.3608]
[1726238308494,0.085968,58158.0,58157.0,0.085969]
[1726238309000,0.3608,58162.0,58151.0,0.3608]
[1726238309297,0.085969,58158.0,58156.0,0.08597]
[1726238309512,0.1057,58161.0,58151.0,0.716777]
[1726238309700,0.1057,58161.0,58160.0,0.085965]
[1726238310613,0.3608,58167.0,58161.0,0.085963]
[1726238310614,0.085962,58163.0,58161.0,0.085963]
[1726238310793,0.3608,58162.0,58161.0,0.085963]
[1726238310991,0.446762,58162.0,58161.0,0.085963]
[1726238311204,0.446762,58162.0,58151.0,0.3608]
[1726238311205,1.7466,58162.0,58151.0,0.3608]
[1726238311391,0.6308,58162.0,58154.0,0.085973]
[1726238311591,0.085977,58152.0,58151.0,0.446777]
[1726238312895,0.3608,58162.0,58151.0,0.3608]
[1726238313104,0.3608,58162.0,58155.0,0.085971]
[1726238313105,0.085971,58156.0,58155.0,0.085971]
[1726238314107,0.085977,58152.0,58151.0,0.36188]
[1726238314313,0.085969,58158.0,58152.0,0.085977]
[1726238314495,0.3608,58162.0,58157.0,0.3608]
[1726238314700,0.1057,58166.0,58165.0,0.085958]
[1726238315205,1.58226,58166.0,58154.0,0.05107613]
[1726238315409,0.085965,58160.0,58154.0,0.085974]
[1726238315596,0.3608,58161.0,58151.0,0.3608]
[1726238315908,0.085967,58159.0,58151.0,0.3608]
[1726238316097,0.3608,58163.0,58154.0,0.27]
[1726238316303,0.1057,58166.0,58165.0,0.085958]
[1726238316699,0.1057,58166.0,58161.0,0.085963]
[1726238316900,0.085965,58160.0,58151.0,0.3608]
[1726238317107,0.1057,58166.0,58151.0,0.3608]
[1726238317407,0.085963,58162.0,58160.0,0.085964]
[1726238317608,0.1057,58166.0,58156.0,0.08597]
[1726238317609,0.3608,58161.0,58156.0,0.08597]
[1726238317807,0.3608,58161.0,58151.0,0.3608]
[1726238317808,0.085977,58152.0,58151.0,0.3608]
[1726238318505,0.085975,58153.0,58145.0,0.3608]
[1726238318707,0.4742,58154.0,58145.0,0.716786]
[1726238318911,0.085976,58153.0,58151.0,0.085978]
[1726238319614,0.085976,58153.0,58152.0,0.085977]
[1726238319812,0.3608,58154.0,58153.0,0.085975]
[1726238320010,0.3608,58154.0,58153.0,0.17195]
[1726238320316,0.3608,58167.0,58166.0,0.085956]
[1726238321405,0.085961,58163.0,58156.0,0.27]
[1726238321713,0.085965,58161.0,58151.0,0.717977]
[1726238322014,0.08597,58157.0,58151.0,0.3608]
[1726238322197,0.3608,58157.0,58156.0,0.085971]
[1726238322599,0.085977,58152.0,58151.0,0.3608]
[1726238323514,0.1107,58156.0,58149.0,0.085981]
[1726238323715,0.085976,58153.0,58141.0,0.085992]
[1726238323907,0.1107,58156.0,58150.0,0.08598]
[1726238324105,0.085973,58155.0,58144.0,0.27]
[1726238324409,0.085981,58150.0,58140.0,0.05107613]
[1726238324608,0.1107,58156.0,58140.0,0.05107613]
[1726238324609,0.085985,58147.0,58140.0,0.05107613]
[1726238324810,0.085986,58146.0,58139.0,0.32107613]
[1726238325007,0.085986,58147.0,58143.0,0.085989]
[1726238325207,0.63168,58151.0,58143.0,0.085989]
[1726238325409,0.6308,58151.0,58143.0,0.085989]
[1726238325716,0.085986,58146.0,58143.0,0.085989]
[1726238325923,0.085986,58146.0,58144.0,0.085988]
[1726238326117,0.085987,58145.0,58144.0,0.085988]
[1726238326412,0.085982,58149.0,58146.0,0.085985]
[1726238326615,0.085984,58148.0,58146.0,0.085985]
[1726238326802,0.085984,58148.0,58142.0,0.085991]
[1726238327006,0.3608,58145.0,58136.0,0.05107613]
[1726238327206,0.3608,58145.0,58135.0,0.32107613]
[1726238327413,0.3608,58145.0,58143.0,0.085989]
[1726238327710,0.3608,58145.0,58135.0,0.32107613]
[1726238327711,0.3608,58145.0,58144.0,0.085989]
[1726238328408,0.3608,58145.0,58144.0,0.171978]
[1726238328603,0.3608,58145.0,58144.0,0.355989]
[1726238328809,0.3608,58145.0,58144.0,1.557938]
[1726238329607,0.3608,58145.0,58144.0,0.441978]
[1726238332114,0.3608,58150.0,58149.0,0.085981]
[1726238332319,0.44678,58150.0,58149.0,0.085981]
[1726238333024,0.3608,58150.0,58145.0,0.3608]
[1726238333219,0.085991,58144.0,58143.0,0.08599]
[1726238334918,0.085991,58144.0,58138.0,0.085996]
[1726238334919,0.085998,58139.0,58138.0,0.085996]
[1726238335223,0.085998,58138.0,58137.0,0.085997]
[1726238336016,0.3608,58139.0,58137.0,0.085997]
[1726238336218,0.3608,58145.0,58144.0,0.085989]
[1726238337110,0.3608,58145.0,58133.0,0.05107613]
[1726238337318,0.27,58142.0,58133.0,0.05107613]
[1726238337620,0.3608,58145.0,58134.0,0.086003]
[1726238337818,0.085992,58142.0,58141.0,0.085992]
[1726238338021,0.085997,58139.0,58138.0,0.085997]
[1726238338517,0.085991,58143.0,58141.0,0.085992]
[1726238338719,0.085991,58143.0,58142.0,0.085992]
[1726238338929,0.446788,58145.0,58144.0,0.085989]
[1726238340021,0.446788,58145.0,58141.0,0.08599]
[1726238340022,0.085993,58142.0,58141.0,0.08599]
[1726238340320,0.2136,58149.0,58148.0,0.085983]
[1726238340525,0.36176001,58152.0,58149.0,0.085981]
[1726238340526,0.08598,58150.0,58149.0,0.085981]
[1726238341225,0.08598,58150.0,58143.0,0.41187613]
[1726238341226,0.45316904,58152.0,58151.0,0.085978]
[1726238341424,0.45316904,58152.0,58143.0,0.41187613]
[1726238341621,0.085983,58148.0,58147.0,0.085983]
[1726238341826,0.085979,58151.0,58150.0,0.085978]
[1726238342218,0.36719204,58152.0,58151.0,0.085978]
[1726238342719,0.3608,58159.0,58151.0,0.446778]
[1726238342918,0.3608,58165.0,58164.0,0.085959]
[1726238343112,0.3608,58165.0,58158.0,0.085968]
[1726238343311,0.3608,58165.0,58155.0,0.0681015]
[1726238343312,0.085968,58158.0,58155.0,0.05107613]
[1726238343518,0.085968,58158.0,58154.0,0.05107613]
[1726238343923,0.27,58164.0,58157.0,0.085969]
[1726238343924,0.085962,58163.0,58157.0,0.085969]
[1726238344123,0.3608,58165.0,58154.0,0.05107613]
[1726238344327,0.27,58163.0,58160.0,0.085964]
[1726238344523,0.085959,58164.0,58154.0,0.05107613]
[1726238344831,0.3608,58160.0,58154.0,0.05107613]
[1726238345129,0.3608,58160.0,58153.0,0.05107613]
[1726238345328,0.085962,58162.0,58157.0,0.085968]
[1726238345528,0.085962,58162.0,58158.0,0.085968]
[1726238345730,0.3608,58165.0,58156.0,0.3608]
[1726238346444,0.0062941,58166.0,58156.0,0.3608]
[1726238346727,0.00088,58174.0,58173.0,0.085946]
[1726238346926,0.00088,58184.0,58183.0,0.085931]
[1726238347124,0.3608,58185.0,58173.0,1.19772258]
[1726238347125,0.3608,58185.0,58184.0,0.085929]
[1726238347331,0.3608,58185.0,58180.0,0.3608]
[1726238347518,0.3608,58185.0,58173.0,0.3608]
[1726238347519,0.085935,58180.0,58173.0,0.3608]
[1726238347717,0.3608,58185.0,58173.0,0.3608]
[1726238347718,0.446729,58185.0,58173.0,0.3608]
[1726238347924,0.27,58183.0,58173.0,0.3608]
[1726238348134,0.446729,58185.0,58173.0,0.3608]
[1726238348321,0.3608,58185.0,58173.0,0.3608]
[1726238348514,0.27,58183.0,58174.0,0.085944]
[1726238348719,0.085938,58179.0,58174.0,0.085944]
[1726238349120,0.085938,58179.0,58175.0,0.085943]
[1726238349525,0.1066,58182.0,58176.0,0.085941]
[1726238349827,0.1066,58182.0,58178.0,0.085938]
[1726238350028,0.3608,58185.0,58184.0,0.085929]
[1726238350932,0.3608,58185.0,58184.0,0.355929]
[1726238351134,0.446708,58199.0,58190.0,0.085921]
[1726238351428,0.446708,58199.0,58184.0,0.6308]
[1726238351429,0.446708,58199.0,58191.0,0.085918]
[1726238351631,0.446708,58199.0,58189.0,0.27]
[1726238351827,0.3608,58199.0,58189.0,0.27]
[1726238352134,0.3608,58199.0,58184.0,0.3608]
[1726238352135,0.00638531,58207.0,58203.0,0.0859]
[1726238352431,0.1027,58204.0,58203.0,0.0859]
[1726238352728,0.1027,58204.0,58200.0,0.085906]
[1726238352926,0.1051,58207.0,58206.0,0.085897]
[1726238353127,0.3608,58208.0,58207.0,0.085896]
[1726238353529,0.3608,58208.0,58207.0,0.355896]
[1726238353727,0.11142965,58217.0,58207.0,0.27]
[1726238353927,0.1051,58217.0,58216.0,0.085882]
[1726238354831,0.1051,58217.0,58209.0,0.27]
[1726238355333,0.085866,58227.0,58216.0,0.3608]
[1726238355632,0.085873,58222.0,58216.0,0.446681]
[1726238356332,0.27,58221.0,58212.0,0.085887]
[1726238357033,0.085882,58217.0,58213.0,0.085886]
[1726238357236,0.46438,58223.0,58212.0,0.3608]
[1726238357532,0.085881,58217.0,58212.0,0.3608]
[1726238358733,0.3608,58218.0,58212.0,0.3608]
[1726238358938,0.085887,58213.0,58208.0,0.085894]
[1726238359241,0.085881,58217.0,58212.0,0.085887]
[1726238359536,0.3608,58218.0,58212.0,0.085887]
[1726238359736,0.3608,58218.0,58210.0,0.085891]
[1726238359945,0.3608,58218.0,58209.0,0.27]
[1726238359946,0.3608,58218.0,58215.0,0.085883]
[1726238360125,0.3608,58218.0,58217.0,0.085881]
[1726238360637,0.3608,58218.0,58217.0,0.687082]
[1726238360937,0.3608,58218.0,58217.0,0.171762]
[1726238361138,0.00641432,58228.0,58222.0,0.085873]
[1726238361439,0.00641432,58228.0,58226.0,0.085867]
[1726238361832,0.00641432,58228.0,58224.0,0.08587]
[1726238361833,0.08587,58225.0,58224.0,0.08587]
[1726238362136,0.085873,58223.0,58221.0,0.085874]
[1726238362438,0.085873,58222.0,58221.0,0.085874]
[1726238362623,0.1041,58227.0,58219.0,0.085877]
[1726238362827,0.3608,58221.0,58215.0,0.447884]
[1726238363029,0.3608,58221.0,58215.0,0.446684]
[1726238363421,0.085881,58217.0,58215.0,0.446684]
[1726238363626,0.446675,58221.0,58215.0,0.6308]
[1726238363826,0.446675,58221.0,58218.0,0.085879]
[1726238364241,0.446675,58221.0,58219.0,0.085877]
[1726238364427,0.085876,58220.0,58219.0,0.085877]
[1726238364628,0.3608,58221.0,58215.0,0.36192]
[1726238364827,0.3608,58221.0,58215.0,0.3608]
[1726238365027,0.3608,58221.0,58217.0,0.08588]
[1726238365331,0.085878,58219.0,58217.0,0.08588]
[1726238365530,0.3608,58221.0,58214.0,0.27]
[1726238365731,0.3608,58221.0,58219.0,0.085877]
[1726238366038,0.085875,58221.0,58214.0,0.27]
[1726238366231,0.085875,58221.0,58218.0,0.085878]
[1726238366431,0.09212952,58222.0,58214.0,0.27]
[1726238366631,0.085875,58221.0,58220.0,0.085875]
[1726238366837,0.09227376,58226.0,58224.0,0.08587]
[1726238367039,0.08587,58224.0,58223.0,0.085871]
[1726238367242,0.1041,58227.0,58221.0,0.085874]
[1726238367439,0.11053609,58227.0,58221.0,0.085874]
[1726238367637,0.085877,58220.0,58214.0,0.27]
[1726238367832,0.085881,58218.0,58214.0,0.27]
[1726238368031,0.11053609,58227.0,58216.0,0.085881]
[1726238368226,0.11053609,58227.0,58214.0,0.27]
[1726238368227,0.08588,58218.0,58215.0,0.085882]
[1726238368432,0.00643609,58227.0,58214.0,0.27]
[1726238368633,0.3608,58228.0,58219.0,0.27]
[1726238368833,0.085869,58225.0,58219.0,0.27]
[1726238369037,0.085866,58227.0,58224.0,0.08587]
[1726238369237,0.085868,58226.0,58224.0,0.08587]
[1726238369444,0.085866,58227.0,58219.0,0.27]
[1726238369633,0.085866,58227.0,58222.0,0.085873]
[1726238369828,0.3608,58228.0,58218.0,0.085878]
[1726238369829,0.085879,58219.0,58218.0,0.085878]
[1726238370141,0.085882,58217.0,58216.0,0.085882]
[1726238370437,0.3608,58217.0,58208.0,0.085893]
[1726238370642,0.300383,58216.0,58209.0,0.085892]
[1726238370829,0.2145,58216.0,58215.0,0.085884]
[1726238371143,0.085875,58221.0,58214.0,0.3608]
[1726238371332,0.00630832,58222.0,58214.0,0.3608]
[1726238371634,0.3608,58223.0,58214.0,0.3608]
[1726238371946,0.085879,58219.0,58214.0,0.3608]
[1726238372244,0.36718566,58223.0,58214.0,0.3608]
[1726238372554,0.085876,58220.0,58214.0,0.3608]
[1726238373335,0.085876,58220.0,58219.0,0.085878]
[1726238374432,0.085884,58215.0,58214.0,0.3608]
[1726238374742,0.085891,58210.0,58209.0,0.362]
[1726238374930,0.085891,58210.0,58209.0,0.3608]
[1726238375332,0.085893,58209.0,58198.0,0.6308]
[1726238375535,0.3608,58210.0,58198.0,0.3608]
[1726238375739,0.3608,58199.0,58195.0,0.085912]
[1726238376040,0.085916,58194.0,58192.0,0.085917]
[1726238376236,0.085909,58198.0,58189.0,0.27]
[1726238376432,0.085909,58198.0,58191.0,0.085919]
[1726238376741,0.3608,58199.0,58189.0,0.27]
[1726238377036,0.3608,58199.0,58188.0,0.085924]
[1726238377037,0.45321322,58199.0,58188.0,0.085924]
[1726238377236,0.3608,58205.0,58198.0,0.355909]
[1726238377434,0.3608,58205.0,58198.0,0.27]
[1726238377630,0.36714513,58205.0,58198.0,0.27]
[1726238377937,0.085904,58202.0,58197.0,0.085909]
[1726238378238,0.3274,58208.0,58199.0,0.27]
[1726238378432,0.3608,58211.0,58192.0,0.3608]
[1726238378433,0.3608,58211.0,58207.0,0.27]
[1726238378739,0.00636878,58211.0,58203.0,0.27]
[1726238379036,0.3608,58212.0,58198.0,0.27]
[1726238379540,0.085896,58207.0,58198.0,0.27]
[1726238379729,0.085892,58210.0,58198.0,0.27]
[1726238380042,0.3608,58212.0,58203.0,0.085901]
[1726238380239,0.085894,58208.0,58204.0,0.0859]
[1726238380547,0.085896,58207.0,58204.0,0.0859]
[1726238380838,0.085894,58208.0,58204.0,0.0859]
[1726238381139,0.085894,58208.0,58198.0,0.27]
[1726238381140,0.00635024,58213.0,58207.0,0.27]
[1726238381440,0.3608,58217.0,58207.0,0.27]
[1726238381636,0.3608,58217.0,58211.0,0.27]
[1726238381840,0.3608,58217.0,58215.0,0.085883]
[1726238382133,0.3608,58217.0,58211.0,0.27]
[1726238382333,0.3608,58224.0,58223.0,0.085872]
[1726238383939,0.3608,58224.0,58216.0,0.6308]
[1726238384144,0.3608,58224.0,58219.0,0.085877]
[1726238384745,0.085873,58222.0,58216.0,0.3608]
[1726238385143,0.085873,58222.0,58217.0,0.085881]
[1726238385543,0.0065405,58229.0,58221.0,0.27]
[1726238385846,0.00635369,58231.0,58225.0,0.3608]
[1726238386051,0.085862,58230.0,58227.0,0.085866]
[1726238386238,0.3608,58228.0,58216.0,0.3608]
[1726238386545,0.085866,58228.0,58222.0,0.3608]
[1726238386845,0.3608,58231.0,58227.0,0.085865]
[1726238387045,0.3608,58231.0,58223.0,0.085872]
[1726238387234,0.085864,58229.0,58223.0,0.085872]
[1726238387436,0.085864,58229.0,58219.0,0.27]
[1726238388038,0.3608,58225.0,58223.0,0.085872]
[1726238388243,0.085874,58222.0,58220.0,0.085876]
[1726238388837,0.3608,58225.0,58208.0,0.376]
[1726238389046,0.085881,58217.0,58208.0,0.27]
[1726238389244,0.085881,58217.0,58214.0,0.085884]
[1726238389442,0.085881,58217.0,58208.0,0.27]
[1726238389847,0.3608,58212.0,58211.0,0.08589]
[1726238390043,0.085881,58217.0,58208.0,0.27]
[1726238390241,0.085881,58217.0,58212.0,0.085887]
[1726238390444,0.085882,58216.0,58213.0,0.085886]
[1726238390651,0.085882,58216.0,58215.0,0.085884]
[1726238391043,0.085886,58214.0,58211.0,0.085889]
[1726238391347,0.085888,58212.0,58211.0,0.085889]
[1726238391654,0.3608,58214.0,58212.0,0.085887]
[1726238392551,0.3608,58214.0,58213.0,0.085887]
[1726238393351,0.2094,58219.0,58218.0,0.085879]
[1726238393541,0.36705796,58220.0,58218.0,0.27]
[1726238393542,0.3608,58220.0,58218.0,0.27]
[1726238393745,0.00644591,58224.0,58223.0,0.085872]
[1726238394045,0.446666,58227.0,58225.0,0.085869]
[1726238394046,0.085868,58226.0,58225.0,0.085869]
[1726238394840,0.3608,58227.0,58218.0,0.27]
[1726238395045,0.36716667,58227.0,58218.0,0.27]
[1726238395244,0.085871,58224.0,58222.0,0.085872]
[1726238395446,0.085874,58222.0,58220.0,0.085876]
[1726238395644,0.3608,58221.0,58220.0,0.085876]
[1726238395856,0.446675,58221.0,58220.0,0.085876]
[1726238396544,0.3608,58221.0,58220.0,0.085876]
[1726238399855,0.36716667,58227.0,58215.0,0.36188]
[1726238400046,0.3608,58222.0,58221.0,0.085875]
[1726238400463,0.3608,58222.0,58218.0,0.355879]
[1726238400464,0.085868,58226.0,58225.0,0.085867]
[1726238400753,0.085882,58219.0,58218.0,0.085878]
[1726238400951,0.085891,58213.0,58212.0,0.085887]
[1726238401355,0.3608,58215.0,58214.0,0.085885]
[1726238401756,0.446684,58215.0,58214.0,0.085885]
[1726238402951,0.446684,58215.0,58201.0,0.05124258]
[1726238402952,0.08589,58212.0,58201.0,0.05124258]
[1726238403147,0.085887,58214.0,58199.0,0.36192]
[1726238403148,0.299587,58214.0,58199.0,0.36192]
[1726238403344,0.085896,58207.0,58199.0,0.3672568]
[1726238403646,0.3608,58208.0,58199.0,0.0064568]
[1726238403857,0.3608,58200.0,58198.0,0.085909]
[1726238404046,0.3608,58200.0,58193.0,0.27]
[1726238404246,0.3608,58200.0,58199.0,0.085907]
[1726238404561,0.0859,58205.0,58204.0,0.085899]
[1726238404749,0.085897,58207.0,58198.0,0.27]
[1726238404949,0.3608,58208.0,58207.0,0.085896]
[1726238405143,0.3608,58208.0,58207.0,0.355896]
[1726238408356,0.085893,58209.0,58207.0,0.355896]
[1726238408357,0.3608,58213.0,58207.0,1.4762]
[1726238408550,0.085875,58221.0,58212.0,0.716688]
[1726238408752,0.085876,58220.0,58219.0,0.085877]
[1726238409259,0.194768,58226.0,58225.0,0.085869]
[1726238409560,0.194768,58226.0,58212.0,0.446688]
[1726238409561,0.11524198,58226.0,58215.0,0.27]
[1726238409753,0.085873,58222.0,58221.0,0.085875]
[1726238409944,0.085873,58222.0,58215.0,0.27]
[1726238409945,0.20110998,58226.0,58215.0,0.27]
[1726238410262,0.00634198,58226.0,58225.0,0.085869]
[1726238410562,0.3608,58228.0,58227.0,0.085866]
[1726238411062,0.13588923,58244.0,58228.0,0.085865]
[1726238411355,0.05177127,58243.0,58242.0,0.355844]
[1726238411661,0.36168,58244.0,58243.0,0.085842]
[1726238411860,0.3608,58244.0,58243.0,0.085842]
[1726238412159,0.3608,58249.0,58248.0,0.085835]
[1726238412559,0.3608,58249.0,58242.0,0.27]
[1726238412861,0.3608,58249.0,58247.0,0.085836]
[1726238413456,0.446634,58249.0,58242.0,0.27]
[1726238413963,0.085834,58249.0,58242.0,0.27]
[1726238414661,0.3608,58247.0,58242.0,0.27]
[1726238415167,0.7216,58247.0,58232.0,0.27]
[1726238415358,0.3608,58241.0,58232.0,0.27]
[1726238415957,0.3608,58247.0,58232.0,0.27]
[1726238416157,0.085845,58242.0,58237.0,0.085851]
[1726238416357,0.085845,58242.0,58232.0,0.27]
[1726238417065,0.3608,58247.0,58244.0,0.085841]
[1726238418262,0.3608,58247.0,58246.0,0.085838]
[1726238418464,0.3608,58247.0,58242.0,0.355844]
[1726238418662,0.446637,58247.0,58242.0,0.085844]
[1726238419059,0.3608,58247.0,58244.0,0.08584]
[1726238419363,0.085839,58246.0,58244.0,0.08584]
[1726238419670,0.3608,58247.0,58240.0,0.085847]
[1726238419871,0.3608,58242.0,58237.0,0.00631705]
[1726238420060,0.3608,58242.0,58238.0,0.27]
[1726238420268,0.08584,58245.0,58242.0,0.085844]
[1726238420459,0.1072,58246.0,58245.0,0.085839]
[1726238420858,0.08584,58245.0,58240.0,0.3608]
[1726238421067,0.08584,58245.0,58244.0,0.085841]
[1726238423273,0.1072,58246.0,58238.0,0.27]
[1726238423572,0.085847,58240.0,58239.0,0.085848]
[1726238424161,0.3608,58242.0,58241.0,0.085845]
[1726238424472,0.1058,58244.0,58234.0,0.27]
[1726238424664,0.085845,58241.0,58239.0,0.085848]
[1726238424865,0.1058,58244.0,58239.0,0.085848]
[1726238425172,0.085847,58240.0,58239.0,0.085848]
[1726238426660,0.085847,58240.0,58234.0,0.27]
[1726238426862,0.085852,58237.0,58236.0,0.085852]
[1726238428176,0.085849,58239.0,58233.0,0.63704126]
[1726238428472,0.085852,58237.0,58236.0,0.085852]
[1726238429469,0.085851,58238.0,58237.0,0.085851]
[1726238430069,0.3608,58241.0,58240.0,0.085847]
[1726238430476,0.1058,58244.0,58243.0,0.085842]
[1726238430778,0.1121151,58244.0,58243.0,0.085842]
[1726238431568,0.00645826,58254.0,58251.0,0.085831]
[1726238432674,0.085828,58253.0,58251.0,0.085831]
[1726238432871,0.09228526,58254.0,58251.0,0.085831]
[1726238433372,0.085828,58253.0,58251.0,0.085831]
[1726238433573,0.413229,58252.0,58251.0,0.085831]
[1726238434076,0.3274,58252.0,58251.0,0.085831]
[1726238434676,0.00645826,58254.0,58247.0,0.3608]
[1726238434873,0.446624,58256.0,58243.0,0.00634258]
[1726238435076,0.446624,58256.0,58239.0,0.27]
[1726238435380,0.085832,58250.0,58249.0,0.085833]
[1726238435782,0.446632,58250.0,58249.0,0.085833]
[1726238435981,0.085837,58247.0,58239.0,0.27]
[1726238436184,0.085838,58246.0,58245.0,0.085839]
[1726238436486,0.27,58257.0,58245.0,0.085839]
[1726238436487,0.3608,58266.0,58264.0,0.085811]
[1726238436784,0.3608,58266.0,58245.0,0.6308]
[1726238436785,0.3608,58266.0,58265.0,0.08581]
[1726238437780,0.2103,58274.0,58265.0,0.51488]
[1726238437976,0.2103,58274.0,58271.0,0.27]
[1726238438185,0.2103,58274.0,58273.0,0.085798]
[1726238438379,0.3274,58275.0,58274.0,0.085797]
[1726238438877,0.3274,58275.0,58271.0,0.27]
[1726238439077,0.3274,58275.0,58274.0,0.085797]
[1726238440680,0.3608,58277.0,58276.0,0.085794]
[1726238440869,0.36731806,58277.0,58276.0,0.085794]
[1726238441070,0.00651806,58277.0,58276.0,0.085794]
[1726238441281,0.2084,58283.0,58278.0,0.08579]
[1726238441282,0.294184,58283.0,58278.0,0.08579]
[1726238441487,0.294184,58283.0,58271.0,0.27]
[1726238441488,0.21467216,58283.0,58280.0,0.085788]
[1726238441880,0.21467216,58283.0,58276.0,0.27]
[1726238442080,0.21467216,58283.0,58280.0,0.085788]
[1726238442270,0.21467216,58283.0,58276.0,0.27]
[1726238442476,0.00627216,58283.0,58276.0,0.27]
[1726238442671,0.3608,58284.0,58276.0,0.27]
[1726238443086,0.085785,58282.0,58278.0,0.085791]
[1726238443387,0.3608,58279.0,58278.0,0.085791]
[1726238443786,0.3608,58290.0,58278.0,1.47556]
[1726238443980,0.36704661,58290.0,58289.0,0.44155]
[1726238444288,0.42091252,58290.0,58289.0,0.51468]
[1726238444595,0.36704661,58290.0,58289.0,0.600455]
[1726238444782,0.3608,58290.0,58289.0,0.600455]
[1726238444989,0.3608,58290.0,58289.0,0.085775]
[1726238445777,0.00653217,58291.0,58283.0,0.6308]
[1726238445981,0.3608,58292.0,58283.0,0.6308]
[1726238446287,0.3608,58292.0,58290.0,0.085773]
[1726238447090,0.3608,58292.0,58283.0,0.6308]
[1726238447289,0.09204926,58293.0,58283.0,0.6308]
[1726238447582,0.00627926,58293.0,58283.0,0.6308]
[1726238447787,0.3608,58294.0,58284.0,0.085781]
[1726238447986,0.085782,58284.0,58283.0,0.27]
[1726238448284,0.085789,58280.0,58277.0,0.3608]
[1726238448482,0.085791,58279.0,58277.0,0.3608]
[1726238448688,0.085791,58279.0,58277.0,0.446592]
[1726238448988,0.662065,58283.0,58280.0,0.085788]
[1726238449183,0.5754,58283.0,58280.0,0.085788]
[1726238449382,0.085786,58281.0,58280.0,0.085788]
[1726238449580,0.57628,58283.0,58276.0,0.085793]
[1726238449886,0.57628,58283.0,58274.0,0.27]
[1726238449887,0.085795,58276.0,58274.0,0.085796]
[1726238450272,0.085795,58275.0,58274.0,0.085796]
[1726238450474,0.58165627,58283.0,58271.0,0.27]
[1726238450475,0.3608,58279.0,58271.0,0.27]
[1726238450672,0.446591,58279.0,58273.0,0.3608]
[1726238450889,0.3608,58279.0,58278.0,0.085791]
[1726238453088,0.085791,58278.0,58275.0,0.085794]
[1726238453393,0.085791,58278.0,58273.0,0.3608]
[1726238453394,0.085791,58278.0,58271.0,0.27]
[1726238453589,0.085791,58278.0,58276.0,0.085793]
[1726238453786,0.085791,58278.0,58271.0,0.27635983]
[1726238454189,0.085791,58278.0,58276.0,0.085793]
[1726238454490,0.3608,58279.0,58278.0,0.085791]
[1726238454685,0.3608,58279.0,58278.0,0.171582]
[1726238454886,0.3608,58279.0,58278.0,1.286342]
[1726238455086,0.3608,58279.0,58278.0,1.200551]
[1726238455688,0.3608,58279.0,58278.0,0.085791]
[1726238456185,0.3608,58279.0,58278.0,0.600551]
[1726238456592,0.3608,58284.0,58283.0,0.085784]
[1726238456788,0.3608,58284.0,58283.0,0.285784]
[1726238458895,0.3608,58284.0,58278.0,0.36729635]
[1726238458896,0.085786,58282.0,58281.0,0.085784]
[1726238460395,0.3608,58284.0,58279.0,0.2]
[1726238460396,0.085788,58280.0,58279.0,0.2]